bitfinex/quotes_BTCUSD_20241002
["timestamp","ask_amount","ask_price","bid_price","bid_amount"]
[1727901924737,0.329075,60928.0,60924.0,0.01463]
[1727901924967,0.164133,60926.0,60924.0,0.02463]
[1727901925196,0.164134,60926.0,60924.0,0.02463]
[1727901925415,0.164136,60925.0,60924.0,0.02463]
[1727901925846,0.000815,60928.0,60924.0,0.19830688]
[1727901926062,0.000815,60928.0,60924.0,0.02163]
[1727901926290,0.000815,60928.0,60926.0,0.164132]
[1727901926506,0.164944,60928.0,60924.0,0.00163]
[1727901926722,0.164944,60928.0,60924.0,0.02163]
[1727901926723,0.000815,60928.0,60924.0,0.02163]
[1727901926941,0.329072,60928.0,60924.0,0.00863]
[1727901927151,0.164136,60925.0,60924.0,0.00163]
[1727901927437,0.164136,60925.0,60924.0,0.01263]
[1727901927866,0.164132,60927.0,60924.0,0.02363]
[1727901928081,0.328261,60927.0,60924.0,0.02363]
[1727901928512,0.164135,60926.0,60924.0,0.02363]
[1727901928770,0.164133,60926.0,60924.0,0.02363]
[1727901928989,0.328264,60927.0,60924.0,0.02363]
[1727901929212,0.164136,60925.0,60924.0,0.00163]
[1727901929439,0.164136,60925.0,60924.0,0.016635]
[1727901929653,0.164136,60925.0,60924.0,0.002635]
[1727901930084,0.164136,60925.0,60924.0,0.015635]
[1727901930337,0.164136,60925.0,60924.0,0.026635]
[1727901930571,0.002,60924.0,60920.0,0.00163]
[1727901930862,0.45282388,60921.0,60920.0,0.00163]
[1727901931160,0.50097381,60921.0,60920.0,0.00163]
[1727901931402,0.49897381,60921.0,60920.0,0.00163]
[1727901931624,0.28612753,60921.0,60920.0,0.00163]
[1727901931839,0.164147,60921.0,60920.0,0.00163]
[1727901932274,0.164147,60921.0,60920.0,0.00263]
[1727901932544,0.01718396,60934.0,60933.0,0.005]
[1727901932784,0.0159591,60936.0,60935.0,0.007]
[1727901933006,0.0159591,60936.0,60935.0,0.48406725]
[1727901933229,0.0159591,60936.0,60935.0,0.48078588]
[1727901933453,0.0159591,60936.0,60935.0,0.47878588]
[1727901933673,0.0159591,60936.0,60935.0,0.292109]
[1727901934564,0.0169591,60936.0,60935.0,0.299109]
[1727901935261,0.0169591,60936.0,60935.0,0.306109]
[1727901935493,0.0109591,60936.0,60935.0,0.276109]
[1727901935996,0.0119591,60936.0,60935.0,0.278109]
[1727901936760,0.0119591,60936.0,60935.0,0.28139076]
[1727901937007,0.0109591,60936.0,60935.0,0.27439076]
[1727901937256,0.0119591,60936.0,60935.0,0.28839076]
[1727901937799,0.0109591,60936.0,60935.0,0.27439076]
[1727901938033,0.0119591,60936.0,60935.0,0.28839076]
[1727901938294,0.0109591,60936.0,60935.0,0.28139076]
[1727901938775,0.0099591,60936.0,60935.0,0.26739076]
[1727901939047,0.0109591,60936.0,60935.0,0.28139076]
[1727901939546,0.0109591,60936.0,60935.0,0.26739076]
[1727901939931,0.24623062,60958.0,60956.0,0.1]
[1727901940183,0.24623062,60958.0,60957.0,0.54880269]
[1727901940463,0.0002,60959.0,60958.0,0.169047]
[1727901940695,0.0002,60959.0,60958.0,0.27232745]
[1727901941188,0.0002,60959.0,60958.0,0.292047]
[1727901941470,0.0002,60959.0,60958.0,0.29732718]
[1727901941696,0.0002,60959.0,60958.0,0.294047]
[1727901942138,0.0002,60959.0,60958.0,0.304047]
[1727901942355,0.0001,60973.0,60972.0,0.164009]
[1727901943072,0.0001,60973.0,60972.0,0.16728897]
[1727901943290,0.0001,60973.0,60972.0,0.164009]
[1727901944136,0.0001,60973.0,60971.0,0.164011]
[1727901944347,0.0001,60973.0,60969.0,0.32803]
[1727901944348,0.0001,60973.0,60972.0,0.174009]
[1727901944562,0.0001,60973.0,60972.0,0.01]
[1727901944988,0.0001,60973.0,60970.0,0.164014]
[1727901945205,0.0001,60973.0,60971.0,0.164009]
[1727901945417,0.24623062,60972.0,60966.0,0.164024]
[1727901945627,0.0001,60973.0,60972.0,0.014]
[1727901945840,0.0001,60973.0,60966.0,0.164024]
[1727901946263,0.0001,60973.0,60972.0,0.013]
[1727901946697,0.0001,60973.0,60972.0,0.001]
[1727901946901,0.0001,60973.0,60972.0,0.015]
[1727901947110,0.0001,60973.0,60972.0,0.001]
[1727901948258,0.0001,60973.0,60972.0,0.014]
[1727901948476,0.164107,60973.0,60972.0,0.028]
[1727901948687,0.164107,60973.0,60972.0,0.014]
[1727901948898,0.19289825,60973.0,60972.0,0.028]
[1727901949141,0.164107,60973.0,60972.0,0.028]
[1727901949389,0.164107,60973.0,60972.0,0.014]
[1727901949607,0.164107,60973.0,60972.0,0.015]
[1727901949834,0.164107,60973.0,60972.0,0.012]
[1727901950300,0.164107,60973.0,60972.0,0.002]
[1727901950953,0.0021,60973.0,60945.0,0.24623062]
[1727901951178,0.164055,60955.0,60946.0,0.164078]
[1727901951383,0.164064,60952.0,60945.0,0.24623062]
[1727901951824,0.164067,60951.0,60942.0,0.492263]
[1727901952041,0.328116,60954.0,60942.0,0.328176]
[1727901952253,0.328122,60953.0,60944.0,0.164084]
[1727901952472,0.164064,60952.0,60944.0,0.164084]
[1727901952678,0.164064,60952.0,60945.0,0.164082]
[1727901952921,0.164059,60954.0,60947.0,0.164076]
[1727901953136,0.164059,60954.0,60942.0,0.328176]
[1727901953137,0.164062,60953.0,60946.0,0.164078]
[1727901953348,0.820222,60959.0,60945.0,0.006]
[1727901953570,0.27975269,60959.0,60945.0,0.006]
[1727901953784,0.164079,60946.0,60945.0,0.006]
[1727901954470,0.164075,60948.0,60945.0,0.006]
[1727901954684,0.328134,60951.0,60942.0,0.001]
[1727901954685,0.164077,60947.0,60942.0,0.001]
[1727901954914,0.328117,60954.0,60945.0,0.164081]
[1727901954915,0.164068,60950.0,60945.0,0.164081]
[1727901955121,0.27975269,60963.0,60944.0,0.164083]
[1727901955122,0.164068,60951.0,60944.0,0.164083]
[1727901955331,0.02572124,60949.0,60944.0,0.164082]
[1727901955551,0.02572124,60949.0,60943.0,0.328174]
[1727901955552,0.164068,60951.0,60945.0,0.170082]
[1727901955769,0.164069,60950.0,60943.0,0.328174]
[1727901955986,0.164072,60949.0,60944.0,0.164084]
[1727901956209,0.328129,60952.0,60945.0,0.007]
[1727901956429,0.164069,60950.0,60945.0,0.007]
[1727901956645,0.427579,60946.0,60945.0,0.017]
[1727901956852,0.164087,60943.0,60942.0,0.001]
[1727901957686,0.264087,60943.0,60942.0,0.001]
[1727901958772,0.274087,60943.0,60942.0,0.002]
[1727901958981,0.43927371,60943.0,60942.0,0.001]
[1727901959235,0.45027371,60943.0,60942.0,0.002]
[1727901959439,0.62337371,60943.0,60942.0,0.002]
[1727901959670,0.45027371,60943.0,60942.0,0.002]
[1727901959881,0.43927371,60943.0,60942.0,0.001]
[1727901960099,0.45027371,60943.0,60942.0,0.002]
[1727901960323,0.45027371,60943.0,60925.0,0.24623062]
[1727901960324,0.16413,60927.0,60926.0,0.24623062]
[1727901960569,0.44388269,60927.0,60926.0,0.24623062]
[1727901960776,0.44388269,60927.0,60924.0,0.001636]
[1727901960777,0.164136,60925.0,60924.0,0.001636]
[1727901961543,0.339136,60925.0,60924.0,0.001636]
[1727901962020,0.343136,60925.0,60924.0,0.001636]
[1727901962278,0.339136,60925.0,60924.0,0.001636]
[1727901962522,0.349136,60925.0,60924.0,0.002636]
[1727901962749,0.339136,60925.0,60924.0,0.001636]
[1727901963240,0.339136,60925.0,60920.0,0.00163]
[1727901963241,0.002,60921.0,60920.0,0.00163]
[1727901963390,0.266147,60921.0,60920.0,0.00163]
[1727901963678,0.266147,60921.0,60902.0,0.24623062]
[1727901963679,0.33031,60918.0,60902.0,0.24623062]
[1727901963947,0.54391269,60916.0,60902.0,0.24623062]
[1727901964194,0.54391269,60916.0,60889.0,0.24623062]
[1727901964195,0.54391269,60916.0,60896.0,0.24623062]
[1727901964196,0.164211,60897.0,60896.0,0.24623062]
[1727901964480,0.264211,60897.0,60896.0,0.24623062]
[1727901964777,0.264211,60897.0,60884.0,0.001632]
[1727901964778,0.1,60896.0,60884.0,0.001632]
[1727901965025,0.35,60907.0,60884.0,0.001632]
[1727901965026,0.1,60904.0,60886.0,0.24623062]
[1727901965275,0.24623062,60905.0,60884.0,0.001632]
[1727901965276,0.24623062,60895.0,60884.0,0.001632]
[1727901965537,0.164231,60890.0,60884.0,0.001632]
[1727901966115,0.007,60897.0,60886.0,0.16424]
[1727901966356,0.24623062,60893.0,60886.0,0.328479]
[1727901966596,0.007,60897.0,60890.0,0.16423]
[1727901966841,0.24623062,60895.0,60888.0,0.164234]
[1727901967127,0.007,60897.0,60888.0,0.164235]
[1727901967359,0.007,60897.0,60887.0,0.328475]
[1727901967586,0.007,60897.0,60891.0,0.164226]
[1727901967840,0.007,60897.0,60884.0,0.001632]
[1727901968092,0.007,60897.0,60893.0,0.164221]
[1727901968403,0.24623062,60898.0,60887.0,0.328472]
[1727901968636,0.001,60895.0,60890.0,0.328459]
[1727901968879,0.001,60895.0,60890.0,0.330459]
[1727901969128,0.001,60895.0,60892.0,0.164224]
[1727901969641,0.001,60895.0,60885.0,0.1612]
[1727901969642,0.165217,60895.0,60893.0,0.002]
[1727901969852,0.001,60895.0,60884.0,0.330124]
[1727901970079,0.001,60895.0,60886.0,0.16424]
[1727901970080,0.164226,60892.0,60886.0,0.16424]
[1727901970311,0.001,60895.0,60884.0,0.001632]
[1727901970312,0.164233,60889.0,60884.0,0.001632]
[1727901970538,0.164234,60889.0,60884.0,0.001632]
[1727901970758,0.164236,60888.0,60884.0,0.001632]
[1727901971029,0.328465,60890.0,60884.0,0.001632]
[1727901971030,0.164238,60887.0,60884.0,0.001632]
[1727901971501,0.164241,60886.0,60884.0,0.001632]
[1727901971727,0.328474,60888.0,60884.0,0.003632]
[1727901971942,0.164241,60886.0,60884.0,0.003632]
[1727901972174,0.164241,60886.0,60884.0,0.001632]
[1727901972395,0.164244,60885.0,60884.0,0.003632]
[1727901973046,0.164244,60885.0,60884.0,0.001632]
[1727901973290,0.164244,60885.0,60884.0,0.004632]
[1727901973572,0.001,60887.0,60884.0,0.004632]
[1727901973573,0.164244,60886.0,60884.0,0.004632]
[1727901973807,0.164244,60885.0,60884.0,0.004632]
[1727901974251,0.165244,60885.0,60884.0,0.004632]
[1727901974705,0.165244,60885.0,60884.0,0.001632]
[1727901974927,0.37208666,60885.0,60884.0,0.003632]
[1727901975165,0.264244,60885.0,60884.0,0.003632]
[1727901975408,0.265244,60885.0,60884.0,0.003632]
[1727901975666,0.265244,60885.0,60884.0,0.001632]
[1727901975951,0.42384193,60885.0,60884.0,0.001632]
[1727901976220,0.4662202,60885.0,60884.0,0.001632]
[1727901976496,0.4662202,60885.0,60860.0,0.24623062]
[1727901976497,0.1643,60864.0,60860.0,0.24623062]
[1727901977014,0.1643,60864.0,60858.0,0.001632]
[1727901977332,0.2643,60864.0,60858.0,0.001632]
[1727901978160,0.2653,60864.0,60858.0,0.001632]
[1727901978966,0.29505871,60864.0,60858.0,0.001632]
[1727901979189,0.29105871,60864.0,60858.0,0.001632]
[1727901979413,0.70347604,60864.0,60858.0,0.001632]
[1727901979636,0.45724542,60864.0,60858.0,0.001632]
[1727901980585,0.45624542,60864.0,60858.0,0.001632]
[1727901980805,0.45924542,60864.0,60858.0,0.001632]
[1727901981024,0.46724542,60864.0,60858.0,0.001632]
[1727901981467,0.45924542,60864.0,60858.0,0.001632]
[1727901981910,0.46724542,60864.0,60858.0,0.001632]
[1727901983481,0.30405871,60864.0,60858.0,0.001632]
[1727901983962,0.2783,60864.0,60858.0,0.001632]
[1727901984415,0.1783,60864.0,60863.0,0.002632]
[1727901984647,0.1783,60864.0,60863.0,0.166935]
[1727901984648,0.014,60864.0,60863.0,0.166935]
[1727901984872,0.006,60864.0,60863.0,0.166935]
[1727901985097,0.164285,60870.0,60864.0,0.161298]
[1727901985322,0.24623062,60868.0,60863.0,0.002632]
[1727901985820,0.328576,60869.0,60863.0,0.002632]
[1727901985821,0.164298,60865.0,60863.0,0.002632]
[1727901986042,0.001,60864.0,60863.0,0.002632]
[1727901986554,0.164298,60865.0,60863.0,0.002632]
[1727901986778,0.002,60886.0,60863.0,0.002632]
[1727901986779,0.32855,60874.0,60864.0,0.328601]
[1727901987032,0.24623062,60868.0,60866.0,0.164295]
[1727901987291,0.164278,60873.0,60868.0,0.164289]
[1727901987548,0.164278,60873.0,60864.0,0.328601]
[1727901987549,0.24623062,60873.0,60871.0,0.328562]
[1727901987806,0.24623062,60873.0,60870.0,0.328568]
[1727901988027,0.164262,60879.0,60872.0,0.492832]
[1727901988252,0.16426,60879.0,60874.0,0.164272]
[1727901988687,0.16426,60879.0,60873.0,0.328547]
[1727901988919,0.16426,60879.0,60875.0,0.164269]
[1727901989172,0.16426,60879.0,60872.0,0.328557]
[1727901989173,0.000818,60883.0,60869.0,0.1]
[1727901989426,0.000818,60883.0,60882.0,0.164252]
[1727901989889,0.000818,60883.0,60882.0,0.318552]
[1727901990125,0.000818,60883.0,60882.0,0.341552]
[1727901990577,0.000818,60883.0,60882.0,0.318552]
[1727901990578,0.001818,60883.0,60882.0,0.318552]
[1727901990800,0.000818,60883.0,60882.0,0.318552]
[1727901991021,0.001818,60883.0,60882.0,0.1543]
[1727901991246,0.000818,60883.0,60870.0,0.2332]
[1727901991471,0.164269,60876.0,60875.0,0.006]
[1727901991944,0.329521,60879.0,60875.0,0.006]
[1727901991945,0.328526,60878.0,60875.0,0.006]
[1727901992161,0.164267,60877.0,60872.0,0.164277]
[1727901992376,0.164267,60877.0,60873.0,0.164275]
[1727901992596,0.328519,60880.0,60869.0,0.164285]
[1727901992597,0.164277,60873.0,60869.0,0.164285]
[1727901992819,0.164266,60877.0,60873.0,0.164275]
[1727901993104,0.164269,60876.0,60872.0,0.164279]
[1727901993326,0.24623062,60879.0,60872.0,0.328556]
[1727901993544,0.164266,60877.0,60873.0,0.164275]
[1727901993761,0.164269,60876.0,60872.0,0.164277]
[1727901993978,0.001,60877.0,60866.0,0.328587]
[1727901994201,0.001,60877.0,60864.0,0.328598]
[1727901994202,0.328551,60874.0,60864.0,0.328598]
[1727901994445,0.328551,60874.0,60862.0,0.0754]
[1727901994446,0.164281,60871.0,60867.0,0.164292]
[1727901994688,0.164281,60871.0,60862.0,0.0754]
[1727901994689,0.328558,60872.0,60866.0,0.164293]
[1727901994934,0.328558,60872.0,60864.0,0.328599]
[1727901994935,0.164287,60869.0,60864.0,0.164298]
[1727901995178,0.328557,60873.0,60872.0,0.006]
[1727901995428,0.51858575,60873.0,60872.0,0.006]
[1727901995683,0.35430975,60873.0,60863.0,0.002632]
[1727901995932,0.164299,60865.0,60863.0,0.002632]
[1727901996169,0.1643,60864.0,60863.0,0.002632]
[1727901996642,0.41053062,60864.0,60863.0,0.002632]
[1727901996859,0.1643,60864.0,60863.0,0.002632]
[1727901997104,0.39904673,60864.0,60863.0,0.002632]
[1727901998240,0.40004673,60864.0,60863.0,0.002632]
[1727901999746,0.39904673,60864.0,60863.0,0.002632]
[1727901999852,0.40904673,60864.0,60863.0,0.003632]
[1727902000069,0.40504673,60864.0,60863.0,0.003632]
[1727902000300,0.40804673,60864.0,60863.0,0.003632]
[1727902000521,0.48584673,60864.0,60863.0,0.003632]
[1727902000962,0.73207735,60864.0,60863.0,0.003632]
[1727902001184,0.64634673,60864.0,60863.0,0.003632]
[1727902001403,0.64434673,60864.0,60863.0,0.003632]
[1727902002049,0.63834673,60864.0,60863.0,0.002632]
[1727902002277,0.65234673,60864.0,60863.0,0.003632]
[1727902002504,0.65134673,60864.0,60863.0,0.003632]
[1727902002720,0.65134673,60864.0,60863.0,0.002632]
[1727902002934,0.64934673,60864.0,60863.0,0.002632]
[1727902003154,0.64934673,60864.0,60863.0,0.003632]
[1727902003424,0.2923,60864.0,60863.0,0.003632]
[1727902003885,0.3033,60864.0,60863.0,0.003632]
[1727902004334,0.53553062,60864.0,60863.0,0.003632]
[1727902004555,0.3003,60864.0,60863.0,0.003632]
[1727902004804,0.41022367,60864.0,60863.0,0.002632]
[1727902005032,0.42422367,60864.0,60863.0,0.002632]
[1727902005471,0.43598507,60864.0,60863.0,0.002632]
[1727902005692,0.41398507,60864.0,60863.0,0.002632]
[1727902005949,0.42398507,60864.0,60863.0,0.002632]
[1727902006161,0.42598507,60864.0,60863.0,0.002632]
[1727902006385,0.41798507,60864.0,60863.0,0.002632]
[1727902006606,0.42698507,60864.0,60863.0,0.002632]
[1727902007046,0.44418843,60864.0,60863.0,0.002632]
[1727902007333,0.45218843,60864.0,60863.0,0.002632]
[1727902007997,0.44118843,60864.0,60863.0,0.002632]
[1727902008456,0.45118843,60864.0,60863.0,0.003632]
[1727902008708,0.06096476,60864.0,60863.0,0.003632]
[1727902008935,0.01720336,60864.0,60863.0,0.166935]
[1727902009166,0.24623062,60874.0,60864.0,0.3156]
[1727902009167,0.57477762,60874.0,60864.0,0.3156]
[1727902009407,0.24623062,60874.0,60864.0,0.3156]
[1727902009652,0.164288,60869.0,60863.0,0.002632]
[1727902009901,0.001,60864.0,60863.0,0.172934]
[1727902010138,0.1653,60864.0,60863.0,0.008632]
[1727902010360,0.1783,60864.0,60863.0,0.008632]
[1727902010595,0.1653,60864.0,60863.0,0.008632]
[1727902011045,0.1643,60864.0,60863.0,0.002632]
[1727902011952,0.19005791,60864.0,60863.0,0.002632]
[1727902012173,0.19005791,60864.0,60863.0,0.003632]
[1727902012625,0.19005791,60864.0,60863.0,0.002632]
[1727902012854,0.02575791,60864.0,60863.0,0.166935]
[1727902013081,0.02675791,60864.0,60863.0,0.004632]
[1727902013311,0.001,60864.0,60863.0,0.168935]
[1727902013553,0.1653,60864.0,60863.0,0.004632]
[1727902013772,0.1663,60864.0,60863.0,0.004632]
[1727902014207,0.1663,60864.0,60863.0,0.002632]
[1727902014423,0.1663,60864.0,60863.0,0.004632]
[1727902016928,0.167118,60864.0,60863.0,0.004632]
[1727902017644,0.40454952,60864.0,60863.0,0.004632]
[1727902018524,0.40254952,60864.0,60863.0,0.002632]
[1727902019249,0.40954952,60864.0,60863.0,0.002632]
[1727902019470,0.272118,60864.0,60863.0,0.002632]
[1727902019909,0.275118,60864.0,60863.0,0.002632]
[1727902020157,0.268118,60864.0,60863.0,0.002632]
[1727902020382,0.270118,60864.0,60863.0,0.002632]
[1727902020605,0.282118,60864.0,60863.0,0.002632]
[1727902020831,0.287118,60864.0,60863.0,0.002632]
[1727902021329,0.282118,60864.0,60863.0,0.002632]
[1727902021587,0.295118,60864.0,60863.0,0.003632]
[1727902021812,0.44330471,60864.0,60863.0,0.003632]
[1727902022041,0.43730471,60864.0,60863.0,0.002632]
[1727902022276,0.000818,60864.0,60863.0,0.166935]
[1727902022498,0.012818,60864.0,60863.0,0.167935]
[1727902022754,0.022818,60864.0,60863.0,0.19309114]
[1727902022980,0.022818,60864.0,60863.0,0.27122067]
[1727902023222,0.033818,60864.0,60863.0,0.27122067]
[1727902023478,0.24623062,60875.0,60874.0,0.164273]
[1727902023697,0.000818,60876.0,60873.0,0.187276]
[1727902023698,0.24623062,60874.0,60873.0,0.187276]
[1727902023921,0.24623062,60874.0,60873.0,0.62962943]
[1727902024143,0.000818,60876.0,60875.0,0.164271]
[1727902024362,0.000818,60876.0,60875.0,0.305856]
[1727902024618,0.000818,60876.0,60875.0,0.293856]
[1727902026196,0.001818,60876.0,60875.0,0.307856]
[1727902026663,0.001818,60876.0,60875.0,0.316856]
[1727902026869,0.001818,60876.0,60875.0,0.413956]
[1727902026870,0.002818,60876.0,60875.0,0.413956]
[1727902027097,0.001818,60876.0,60875.0,0.410671]
[1727902027580,0.001818,60876.0,60875.0,0.387671]
[1727902027581,0.002818,60876.0,60875.0,0.387671]
[1727902027813,0.002818,60876.0,60875.0,0.401671]
[1727902028490,0.002818,60876.0,60875.0,0.387671]
[1727902029204,0.0489543,60914.0,60888.0,0.005]
[1727902029422,0.24623062,60915.0,60914.0,0.164165]
[1727902029669,0.24623062,60915.0,60914.0,0.19043867]
[1727902029904,0.24623062,60915.0,60914.0,0.187165]
[1727902030129,0.000818,60925.0,60923.0,0.164141]
[1727902030610,0.000818,60925.0,60916.0,0.328318]
[1727902030825,0.000818,60925.0,60922.0,0.164141]
[1727902031053,0.000818,60925.0,60924.0,0.164138]
[1727902032423,0.000818,60925.0,60923.0,0.014]
[1727902032643,0.000818,60925.0,60923.0,0.16414]
[1727902033086,0.000818,60925.0,60924.0,0.014]
[1727902033301,0.000818,60925.0,60924.0,0.178138]
[1727902033526,0.000818,60925.0,60924.0,0.014]
[1727902033750,0.164954,60925.0,60924.0,0.014]
[1727902033971,0.000818,60925.0,60924.0,0.014]
[1727902034733,0.000818,60925.0,60924.0,0.028]
[1727902035013,0.000818,60925.0,60924.0,0.178138]
[1727902035305,0.000818,60925.0,60924.0,0.190138]
[1727902035575,0.000818,60925.0,60924.0,0.178138]
[1727902035874,0.000818,60925.0,60924.0,0.192138]
[1727902036151,0.000818,60925.0,60924.0,0.36072018]
[1727902036396,0.000818,60925.0,60924.0,0.443438]
[1727902037441,0.000818,60925.0,60924.0,0.459438]
[1727902037661,0.000818,60925.0,60924.0,0.457438]
[1727902038372,0.000818,60925.0,60924.0,0.443438]
[1727902038626,0.000818,60925.0,60924.0,0.457438]
[1727902039087,0.000818,60925.0,60924.0,0.785718]
[1727902040402,0.000818,60925.0,60924.0,0.35628]
[1727902040615,0.000818,60925.0,60924.0,0.520418]
[1727902041309,0.000818,60925.0,60924.0,0.492418]
[1727902041547,0.000818,60925.0,60924.0,0.504418]
[1727902041999,0.000818,60925.0,60924.0,0.32828]
[1727902042257,0.000818,60925.0,60924.0,0.34028]
[1727902042508,0.000818,60925.0,60924.0,0.32828]
[1727902042746,0.000818,60925.0,60924.0,0.506418]
[1727902042978,0.000818,60925.0,60924.0,0.515418]
[1727902043424,0.000818,60925.0,60924.0,0.540418]
[1727902043656,0.000818,60925.0,60924.0,0.453118]
[1727902043891,0.000818,60925.0,60924.0,0.442118]
[1727902044109,0.000818,60925.0,60924.0,0.433118]
[1727902044539,0.000818,60925.0,60924.0,0.419118]
[1727902045069,0.000818,60925.0,60924.0,0.25498]
[1727902045280,0.164954,60925.0,60924.0,0.25498]
[1727902045488,0.000818,60925.0,60924.0,0.24098]
[1727902045916,0.000818,60925.0,60924.0,0.26898]
[1727902045917,0.164954,60925.0,60924.0,0.26898]
[1727902046148,0.164954,60925.0,60924.0,0.25498]
[1727902046355,0.164954,60925.0,60924.0,0.41898347]
[1727902046356,0.000818,60925.0,60924.0,0.41898347]
[1727902046994,0.000818,60925.0,60924.0,0.26884547]
[1727902047203,0.000818,60925.0,60924.0,0.24084547]
[1727902047612,0.164954,60925.0,60924.0,0.25484547]
[1727902047936,0.000818,60925.0,60924.0,0.26884547]
[1727902048153,0.164954,60925.0,60924.0,0.26884547]
[1727902049479,0.000818,60925.0,60924.0,0.52798347]
[1727902049720,0.000818,60925.0,60924.0,0.60988347]
[1727902049941,0.001818,60925.0,60924.0,0.63788347]
[1727902050155,0.001818,60925.0,60924.0,0.62388347]
[1727902050373,0.002818,60925.0,60924.0,0.62388347]
[1727902050591,0.002818,60925.0,60924.0,0.63788347]
[1727902050800,0.000818,60925.0,60924.0,0.62388347]
[1727902051280,0.001818,60925.0,60924.0,0.62388347]
[1727902051500,0.001818,60925.0,60924.0,0.63788347]
[1727902052381,0.000818,60925.0,60924.0,0.62388347]
[1727902052655,0.000818,60925.0,60924.0,0.79207018]
[1727902052860,0.000818,60925.0,60924.0,0.91987018]
[1727902053089,0.000818,60925.0,60924.0,0.94787018]
[1727902053291,0.000818,60925.0,60924.0,0.93387018]
[1727902053724,0.000818,60925.0,60924.0,0.94787018]
[1727902053912,0.000818,60925.0,60924.0,0.93387018]
[1727902054335,0.000818,60925.0,60924.0,0.94787018]
[1727902054553,0.000817,60937.0,60936.0,0.164106]
[1727902054781,0.000817,60937.0,60936.0,0.88268749]
[1727902055438,0.000817,60937.0,60936.0,0.602746]
[1727902056315,0.000817,60937.0,60936.0,0.616746]
[1727902056761,0.000817,60937.0,60936.0,0.45264]
[1727902056980,0.000817,60937.0,60936.0,0.41564]
[1727902057198,0.000817,60937.0,60936.0,0.42864]
[1727902057199,0.16492,60937.0,60936.0,0.42864]
[1727902057424,0.16492,60937.0,60936.0,0.44264]
[1727902057700,0.000817,60937.0,60936.0,0.42964]
[1727902057940,0.000817,60937.0,60936.0,0.607746]
[1727902058371,0.000817,60937.0,60936.0,0.630746]
[1727902058590,0.000817,60937.0,60936.0,0.616746]
[1727902059045,0.000817,60937.0,60936.0,0.630746]
[1727902059259,0.000817,60937.0,60936.0,0.602746]
[1727902059482,0.000817,60937.0,60936.0,0.616746]
[1727902060121,0.000817,60937.0,60936.0,0.643746]
[1727902060351,0.000817,60937.0,60936.0,0.615746]
[1727902060566,0.000817,60937.0,60936.0,0.616746]
[1727902060778,0.16492,60937.0,60936.0,0.44364]
[1727902061218,0.000817,60937.0,60936.0,0.44364]
[1727902061453,0.16492,60937.0,60936.0,0.44364]
[1727902061881,0.16492,60937.0,60936.0,0.42964]
[1727902062719,0.16492,60937.0,60936.0,0.44064]
[1727902062945,0.16492,60937.0,60936.0,0.41564]
[1727902063171,0.16492,60937.0,60936.0,0.42564]
[1727902063398,0.16492,60937.0,60936.0,0.43664]
[1727902063632,0.16492,60937.0,60936.0,0.41564]
[1727902064149,0.16492,60937.0,60936.0,0.42564]
[1727902064415,0.24562,60937.0,60936.0,0.42564]
[1727902064639,0.4605691,60937.0,60936.0,0.42564]
[1727902064862,0.4605691,60937.0,60936.0,0.43664]
[1727902065305,0.4605691,60937.0,60936.0,0.42664]
[1727902065518,0.4625691,60937.0,60936.0,0.42664]
[1727902065736,0.4625691,60937.0,60936.0,0.41564]
[1727902065952,0.6045691,60937.0,60936.0,0.26464]
[1727902066388,0.6025691,60937.0,60936.0,0.26464]
[1727902066621,0.6045691,60937.0,60936.0,0.26464]
[1727902066843,0.48562,60937.0,60936.0,0.11364]
[1727902067061,0.164136,60925.0,60924.0,0.001636]
[1727902069393,0.164136,60925.0,60924.0,0.004636]
[1727902069849,0.164136,60925.0,60924.0,0.006636]
[1727902070082,0.164136,60925.0,60924.0,0.003636]
[1727902070331,0.164136,60925.0,60924.0,0.006636]
[1727902070572,0.41036662,60925.0,60924.0,0.006636]
[1727902070811,0.164136,60925.0,60924.0,0.003636]
[1727902071276,0.164136,60925.0,60924.0,0.001636]
[1727902071505,0.32732271,60925.0,60924.0,0.006636]
[1727902071758,0.42732271,60925.0,60924.0,0.006636]
[1727902072238,0.50602271,60925.0,60924.0,0.004636]
[1727902072467,0.50602271,60925.0,60924.0,0.002636]
[1727902072961,0.16419,60905.0,60904.0,0.24623062]
[1727902073236,0.54413149,60905.0,60904.0,0.24623062]
[1727902073512,0.54413149,60905.0,60895.0,0.001636]
[1727902073513,0.164209,60898.0,60895.0,0.001636]
[1727902073743,0.164214,60896.0,60895.0,0.001636]
[1727902075385,0.164214,60896.0,60895.0,0.003636]
[1727902075892,0.164214,60896.0,60895.0,0.001636]
[1727902076128,0.165214,60896.0,60895.0,0.001636]
[1727902076348,0.265214,60896.0,60895.0,0.001636]
[1727902076581,0.42840071,60896.0,60895.0,0.001636]
[1727902076800,0.42840071,60896.0,60895.0,0.003636]
[1727902077287,0.265214,60896.0,60895.0,0.003636]
[1727902077955,0.265214,60896.0,60895.0,0.001636]
[1727902077956,0.165214,60896.0,60895.0,0.001636]
[1727902078188,0.003,60896.0,60895.0,0.001636]
[1727902078416,0.003,60896.0,60895.0,0.301753]
[1727902078417,0.005,60896.0,60895.0,0.301753]
[1727902078639,0.002,60896.0,60895.0,0.301753]
[1727902078864,0.001,60896.0,60895.0,0.47425101]
[1727902079114,0.002,60896.0,60895.0,0.635184]
[1727902079348,0.001,60896.0,60895.0,0.635184]
[1727902079585,0.32836,60909.0,60900.0,0.164202]
[1727902079586,0.164193,60904.0,60900.0,0.164202]
[1727902079817,0.164185,60907.0,60903.0,0.164194]
[1727902080299,0.002,60930.0,60901.0,0.00327703]
[1727902080529,0.04739673,60924.0,60899.0,0.32841]